[Event "TOP 16 - Final A"]
[Site "TOP16-Final-A"]
[Date "2021.01.17"]
[Round "9"]
[White "Harut-1998"]
[Black "Bagheri amir"]
[Result "1/2-1/2"]
[WhiteElo "2305"]
[BlackElo "2177"]
[Annotator "NA RC"]
[PlyCount "80"]
[EventDate "2021.01.17"]
[EventType "blitz"]
[WhiteTeam "Nice Alekhine "]
[BlackTeam "monaco"]
[TimeControl "420+3"]

{Haroutyun , Barseghyan (2471) - Bagheri, Amir} 1. Nf3 {[%emt 0:00:05]} Nf6 {[%emt 0:00:04]} 2. e3 {[%emt 0:00:03]} d5 {[%emt 0:00:23]} 3. c4 {[%emt 0:00:04]} c6 {[%emt 0:00:42]} 4. Nc3 {[%emt 0:00:05]} Bg4 {[%emt 0:00:11]} 5. Qb3 {[%emt 0:00:10]} Qb6 {[%emt 0:00:34]} 6. Qxb6 {[%emt 0:00:03]} axb6 {[%emt 0:00:04]} 7. cxd5 {[%emt 0:00:15]} Nxd5 {[%emt 0:00:39]} 8. Nxd5 {[%emt 0:00:03]} cxd5 {[%emt 0:00:02]} 9. Ne5 {[%emt 0:00:18]} Bd7 {[%emt 0:01:03]} 10. Nxd7 {[%emt 0:00:06]} Kxd7 {[%emt 0:00:02]} 11. d4 {[%emt 0:00:27]} Nc6 {[%emt 0:00:02]} 12. Bb5 {[%emt 0:00:03]} e6 {[%emt 0:00:02]} 13. Bd2 {[%emt 0:00:07]} Bd6 {[%emt 0:00:04]} 14. Ke2 {[%emt 0:00:10]} Rhc8 {[%emt 0:00:02]} 15. a3 {[%emt 0:00:49]} Kd8 {[%emt 0:00:06]} 16. Rac1 {[%emt 0:00:24]} Na5 {[%emt 0:00:03]} 17. Rc3 {[%emt 0:00:15]} Rxc3 {[%emt 0:00:12]} 18. Bxc3 {[%emt 0:00:03]} Rc8 {[%emt 0:00:01]} 19. f4 {[%emt 0:00:27]} f5 {[%emt 0:00:11]} 20. h3 {[%emt 0:00:11]} Nc6 {[%emt 0:00:17] Bagheri amir offers a draw} 21. g4 {[%emt 0:00:06]} Ne7 {[%emt 0:00:30]} 22. Rc1 {[%emt 0:00:17]} Ng8 {[%emt 0:00:21]} 23. g5 {[%emt 0:00:04]} Ne7 {[%emt 0:00:05]} 24. h4 {[%emt 0:00:05]} Rc7 {[%emt 0:00:05]} 25. h5 {[%emt 0:00:04]} Nc8 {[%emt 0:00:05]} 26. Bd3 {[%emt 0:00:06]} Be7 {[%emt 0:00:10]} 27. h6 {[%emt 0:00:13]} g6 {[%emt 0:00:03]} 28. a4 {[%emt 0:00:23]} Nd6 {[%emt 0:00:42]} 29. Ra1 {[%emt 0:00:07]} Ne4 {[%emt 0:00:06]} 30. Be1 {[%emt 0:00:05]} Rc8 {[%emt 0:00:09]} 31. Kd1 {[%emt 0:00:12]} Ra8 {[%emt 0:00:05]} 32. Kc2 {[%emt 0:00:27]} Bd6 {[%emt 0:00:02]} 33. Kb3 {[%emt 0:00:04]} Bc7 {[%emt 0:00:05]} 34. Bb4 {[%emt 0:00:07]} Kd7 {[%emt 0:00:09]} 35. Bb5+ {[%emt 0:00:05]} Kd8 {[%emt 0:00:03]} 36. Rc1 {[%emt 0:00:05]} Bd6 {[%emt 0:00:10]} 37. Bd3 {[%emt 0:00:26]} Bxb4 {[%emt 0:00:10]} 38. Kxb4 {[%emt 0:00:00]} Nd6 {[%emt 0:00:03]} 39. b3 {[%emt 0:00:09]} Ra7 {[%emt 0:00:07]} 40. Rc2 {[%emt 0:00:34]} Ra5 {[%emt 0:00:02] Harut-1998 offers a draw} 1/2-1/2

[Event "TOP 16 - Final A"]
[Site "TOP16-Final-A"]
[Date "2021.01.17"]
[Round "9"]
[White "Pastouche06"]
[Black "Burrito2001"]
[Result "1/2-1/2"]
[WhiteElo "2199"]
[BlackElo "2167"]
[Annotator "NA RC"]
[PlyCount "124"]
[EventDate "2021.01.17"]
[EventType "blitz"]
[TimeControl "420+3"]

1. d4 {[%emt 0:00:05]} d5 {[%emt 0:00:01]} 2. c4 {[%emt 0:00:03]} c6 {[%emt 0:00:01]} 3. Nf3 {[%emt 0:00:02]} Nf6 {[%emt 0:00:01]} 4. e3 {[%emt 0:00:05]} e6 {[%emt 0:00:05]} 5. b3 {[%emt 0:00:06]} Bd6 {[%emt 0:00:03]} 6. Bb2 {[%emt 0:00:06]} O-O {[%emt 0:00:01]} 7. Bd3 {[%emt 0:00:02]} Nbd7 {[%emt 0:00:07]} 8. O-O {[%emt 0:00:11]} Qe7 {[%emt 0:00:33]} 9. Ne5 {[%emt 0:00:24]} a6 {[%emt 0:00:08]} 10. Qf3 {[%emt 0:00:51]} Rd8 {[%emt 0:01:49]} 11. Qh3 {[%emt 0:00:21]} Nf8 {[%emt 0:00:06]} 12. Nd2 {[%emt 0:00:44]} Ba3 {[%emt 0:00:49]} 13. Bxa3 {[%emt 0:00:14]} Qxa3 {[%emt 0:00:00]} 14. Qh4 {[%emt 0:01:38]} Bd7 {[%emt 0:00:40]} 15. Ndf3 {[%emt 0:00:08]} Be8 {[%emt 0:00:12]} 16. c5 {[%emt 0:00:12]} Rdb8 {[%emt 0:00:34]} 17. g4 {[%emt 0:00:22]} Qa5 {[%emt 0:00:54]} 18. g5 {[%emt 0:00:11]} N6d7 {[%emt 0:00:02]} 19. Nxd7 {[%emt 0:00:16]} Bxd7 {[%emt 0:00:02]} 20. Ne5 {[%emt 0:00:01]} Be8 {[%emt 0:00:02]} 21. f4 {[%emt 0:00:24]} b6 {[%emt 0:00:14]} 22. cxb6 {[%emt 0:00:36]} c5 {[%emt 0:00:11]} 23. Rf3 {[%emt 0:00:22]} cxd4 {[%emt 0:00:48]} 24. Rh3 {[%emt 0:00:07]} dxe3 {[%emt 0:00:14]} 25. Bxh7+ {[%emt 0:00:04]} Nxh7 {[%emt 0:00:01]} 26. Qxh7+ {[%emt 0:00:00]} Kf8 {[%emt 0:00:00]} 27. Qh8+ {[%emt 0:00:07]} Ke7 {[%emt 0:00:01]} 28. Qxg7 {[%emt 0:00:00]} Qd2 {[%emt 0:00:14]} 29. Ng6+ {[%emt 0:00:25]} Kd7 {[%emt 0:00:15]} 30. Nf8+ {[%emt 0:00:05]} Kc6 {[%emt 0:00:05]} 31. Qe5 {[%emt 0:00:07]} e2 {[%emt 0:00:09]} 32. Rc3+ {[%emt 0:00:11]} Kb5 {[%emt 0:00:01]} 33. a4+ {[%emt 0:00:03]} Kb4 {[%emt 0:00:01]} 34. Re3 {[%emt 0:00:02]} Rxb6 {[%emt 0:00:05]} 35. Rxe2 {[%emt 0:00:03]} Qc3 {[%emt 0:00:01]} 36. Qxc3+ {[%emt 0:00:06]} Kxc3 {[%emt 0:00:00]} 37. g6 {[%emt 0:00:01]} fxg6 {[%emt 0:00:02]} 38. Nxe6 {[%emt 0:00:01]} Bd7 {[%emt 0:00:03]} 39. Rc1+ {[%emt 0:00:03]} Kb4 {[%emt 0:00:01]} 40. Nd4 {[%emt 0:00:03]} Bf5 {[%emt 0:00:02]} 41. Nxf5 {[%emt 0:00:06]} gxf5 {[%emt 0:00:01]} 42. Re5 {[%emt 0:00:01]} Rd8 {[%emt 0:00:04]} 43. Rd1 {[%emt 0:00:03]} d4 {[%emt 0:00:01]} 44. Rd3 {[%emt 0:00:03]} Rc6 {[%emt 0:00:03]} 45. Rxf5 {[%emt 0:00:03]} Rc3 {[%emt 0:00:01]} 46. Rd1 {[%emt 0:00:03]} d3 {[%emt 0:00:01]} 47. Kf2 {[%emt 0:00:01]} Kxb3 {[%emt 0:00:02]} 48. Ke3 {[%emt 0:00:06]} d2+ {[%emt 0:00:03]} 49. Ke2 {[%emt 0:00:01]} Kc2 {[%emt 0:00:01]} 50. Re5 {[%emt 0:00:03]} Rc4 {[%emt 0:00:12]} 51. f5 {[%emt 0:00:03]} Rdd4 {[%emt 0:00:04]} 52. Re3 {[%emt 0:00:05]} Rc6 {[%emt 0:00:07]} 53. Re5 {[%emt 0:00:04]} Rcc4 {[%emt 0:00:14]} 54. Re3 {[%emt 0:00:02]} Rc5 {[%emt 0:00:03]} 55. Re6 {[%emt 0:00:04]} Rxf5 {[%emt 0:00:03]} 56. Rc6+ {[%emt 0:00:01]} Kb3 {[%emt 0:00:00]} 57. Rxd2 {[%emt 0:00:02]} Rxd2+ {[%emt 0:00:00]} 58. Kxd2 {[%emt 0:00:00]} Rf2+ {[%emt 0:00:00]} 59. Kd3 {[%emt 0:00:02]} Rxh2 {[%emt 0:00:01]} 60. Rxa6 {[%emt 0:00:02]} Ra2 {[%emt 0:00:01]} 61. Ke3 {[%emt 0:00:04]} Rxa4 {[%emt 0:00:01]} 62. Rxa4 {[%emt 0:00:00]} Kxa4 {[%emt 0:00:00] (Lag: Av=1.10s, max=4.6s)} 1/2-1/2

[Event "TOP 16 - Final A"]
[Site "TOP16-Final-A"]
[Date "2021.01.17"]
[Round "9"]
[White "Pierre35"]
[Black "ProfTerrieux"]
[Result "1/2-1/2"]
[WhiteElo "2108"]
[BlackElo "2325"]
[Annotator "NA RC"]
[PlyCount "119"]
[EventDate "2021.01.17"]
[EventType "blitz"]
[TimeControl "420+3"]

1. e4 {[%emt 0:00:08]} c5 {[%emt 0:00:03]} 2. Nf3 {[%emt 0:00:02]} e6 {[%emt 0:00:04]} 3. g3 {[%emt 0:00:08]} Nc6 {[%emt 0:00:06]} 4. Bg2 {[%emt 0:00:03]} Nf6 {[%emt 0:00:01]} 5. d3 {[%emt 0:00:07]} d6 {[%emt 0:00:07]} 6. O-O {[%emt 0:00:02]} Be7 {[%emt 0:00:01]} 7. Re1 {[%emt 0:00:07]} O-O {[%emt 0:00:07]} 8. c3 {[%emt 0:00:03]} Bd7 {[%emt 0:00:04]} 9. d4 {[%emt 0:00:12]} d5 {[%emt 0:00:16]} 10. e5 {[%emt 0:00:07]} Ne4 {[%emt 0:00:03]} 11. Nbd2 {[%emt 0:00:06]} Nxd2 {[%emt 0:00:09]} 12. Bxd2 {[%emt 0:00:02]} cxd4 {[%emt 0:00:26]} 13. cxd4 {[%emt 0:00:02]} Qb6 {[%emt 0:00:06]} 14. Bc3 {[%emt 0:00:17]} a5 {[%emt 0:00:01]} 15. Bf1 {[%emt 0:00:15]} a4 {[%emt 0:00:05]} 16. a3 {[%emt 0:00:07]} Na5 {[%emt 0:00:07]} 17. Bd3 {[%emt 0:00:11]} Nb3 {[%emt 0:01:03]} 18. Rb1 {[%emt 0:00:51]} Bb5 {[%emt 0:00:49]} 19. Bc2 {[%emt 0:01:39]} Bc4 {[%emt 0:00:01]} 20. Nd2 {[%emt 0:00:06]} Nxd2 {[%emt 0:00:07]} 21. Qxd2 {[%emt 0:00:00]} Qd8 {[%emt 0:00:10]} 22. h4 {[%emt 0:00:14]} b5 {[%emt 0:00:12]} 23. Rbc1 {[%emt 0:00:09]} Qb6 {[%emt 0:00:14]} 24. Kg2 {[%emt 0:00:17]} Rfb8 {[%emt 0:00:41]} 25. h5 {[%emt 0:00:13]} b4 {[%emt 0:01:04]} 26. axb4 {[%emt 0:00:03]} Bxb4 {[%emt 0:00:01]} 27. h6 {[%emt 0:00:17]} Bxc3 {[%emt 0:00:17]} 28. Qg5 {[%emt 0:00:34]} g6 {[%emt 0:00:02]} 29. Qf6 {[%emt 0:00:05]} Kf8 {[%emt 0:00:01]} 30. bxc3 {[%emt 0:00:03]} Qd8 {[%emt 0:00:01]} 31. Qg7+ {[%emt 0:00:06]} Ke7 {[%emt 0:00:01]} 32. Rb1 {[%emt 0:01:01]} Bb3 {[%emt 0:01:13]} 33. Bxb3 {[%emt 0:00:09]} axb3 {[%emt 0:00:04]} 34. Qxh7 {[%emt 0:00:09]} Qf8 {[%emt 0:00:04]} 35. Qg7 {[%emt 0:00:09]} Qxg7 {[%emt 0:00:07]} 36. hxg7 {[%emt 0:00:00]} Ra3 {[%emt 0:00:25]} 37. Re2 {[%emt 0:00:16]} f5 {[%emt 0:00:09]} 38. exf6+ {[%emt 0:00:27]} Kxf6 {[%emt 0:00:01]} 39. Rbb2 {[%emt 0:00:04]} Kf7 {[%emt 0:00:10]} 40. f4 {[%emt 0:00:02]} Rg8 {[%emt 0:00:05]} 41. Re1 {[%emt 0:00:07]} Kf6 {[%emt 0:00:06]} 42. Reb1 {[%emt 0:00:02]} Kxg7 {[%emt 0:00:03]} 43. Rxb3 {[%emt 0:00:01]} Ra2+ {[%emt 0:00:01]} 44. R1b2 {[%emt 0:00:01]} Rxb2+ {[%emt 0:00:01]} 45. Rxb2 {[%emt 0:00:00]} Rc8 {[%emt 0:00:01]} 46. Rb3 {[%emt 0:00:03]} Kf6 {[%emt 0:00:02]} 47. Kf3 {[%emt 0:00:01]} g5 {[%emt 0:00:00]} 48. Kg4 {[%emt 0:00:09]} gxf4 {[%emt 0:00:01]} 49. Kxf4 {[%emt 0:00:00]} Rc4 {[%emt 0:00:03]} 50. g4 {[%emt 0:00:02]} e5+ {[%emt 0:00:01]} 51. Ke3 {[%emt 0:00:05]} exd4+ {[%emt 0:00:03]} 52. cxd4 {[%emt 0:00:00]} Kg5 {[%emt 0:00:02]} 53. Kd3 {[%emt 0:00:08]} Rc8 {[%emt 0:00:10]} 54. Rb7 {[%emt 0:00:05]} Rd8 {[%emt 0:00:08]} 55. Rg7+ {[%emt 0:00:01]} Kf6 {[%emt 0:00:01]} 56. Rh7 {[%emt 0:00:02]} Kg5 {[%emt 0:00:01]} 57. Rg7+ {[%emt 0:00:04]} Kf6 {[%emt 0:00:01]} 58. Ra7 {[%emt 0:00:01]} Kg5 {[%emt 0:00:01]} 59. Rf7 {[%emt 0:00:05]} Kxg4 {[%emt 0:00:02] Pierre35 offers a draw} 60. Rf6 {[%emt 0:00:05]} 1/2-1/2

[Event "TOP 16 - Final A"]
[Site "TOP16-Final-A"]
[Date "2021.01.17"]
[Round "9"]
[White "SebyFischer57"]
[Black "Nikame"]
[Result "0-1"]
[WhiteElo "2065"]
[BlackElo "1959"]
[Annotator "NA RC"]
[PlyCount "52"]
[EventDate "2021.01.17"]
[EventType "blitz"]
[TimeControl "420+3"]

1. c4 {[%emt 0:00:03]} e6 {[%emt 0:00:14]} 2. Nf3 {[%emt 0:00:04]} Nf6 {[%emt 0:00:06]} 3. g3 {[%emt 0:00:03]} a6 {[%emt 0:00:01]} 4. Bg2 {[%emt 0:00:06]} b5 {[%emt 0:00:02]} 5. b3 {[%emt 0:00:37]} Bb7 {[%emt 0:00:02]} 6. O-O {[%emt 0:00:02]} Be7 {[%emt 0:00:13]} 7. d4 {[%emt 0:01:07]} c5 {[%emt 0:00:08]} 8. Nc3 {[%emt 0:00:45]} cxd4 {[%emt 0:00:59]} 9. Qxd4 {[%emt 0:00:09]} Nc6 {[%emt 0:00:06]} 10. Qf4 {[%emt 0:00:04]} bxc4 {[%emt 0:00:07]} 11. bxc4 {[%emt 0:00:04]} Rc8 {[%emt 0:00:13]} 12. Rb1 {[%emt 0:00:21]} Na5 {[%emt 0:00:02]} 13. Be3 {[%emt 0:01:42]} Rxc4 {[%emt 0:00:16]} 14. Bb6 {[%emt 0:00:05]} Rxf4 {[%emt 0:00:13]} 15. Bxd8 {[%emt 0:00:03]} Rxf3 {[%emt 0:00:22]} 16. Bxa5 {[%emt 0:00:03]} Rf5 {[%emt 0:00:02]} 17. Nd5 {[%emt 0:01:15]} exd5 {[%emt 0:00:55]} 18. Rxb7 {[%emt 0:00:04]} O-O {[%emt 0:00:02]} 19. Bc3 {[%emt 0:00:39]} Rc8 {[%emt 0:00:51]} 20. Bxf6 {[%emt 0:00:05]} Bxf6 {[%emt 0:00:07]} 21. Rxd7 {[%emt 0:00:03]} d4 {[%emt 0:00:15]} 22. Bd5 {[%emt 0:00:13]} Rf8 {[%emt 0:00:22]} 23. Rb1 {[%emt 0:00:05]} Re5 {[%emt 0:00:19]} 24. Kf1 {[%emt 0:00:03]} Re7 {[%emt 0:00:06]} 25. Rbb7 {[%emt 0:00:03]} Rfe8 {[%emt 0:00:05]} 26. Bxf7+ {[%emt 0:00:07]} Kxf7 {[%emt 0:00:03] SebyFischer57 resigns} 0-1

[Event "TOP 16 - Final A"]
[Site "TOP16-Final-A"]
[Date "2021.01.17"]
[Round "9"]
[White "Amiralfio"]
[Black "Jncool68"]
[Result "1/2-1/2"]
[WhiteElo "1869"]
[BlackElo "2259"]
[Annotator "NA RC"]
[PlyCount "102"]
[EventDate "2021.01.17"]
[EventType "blitz"]
[TimeControl "420+3"]

1. Nf3 {[%emt 0:00:33]} d5 {[%emt 0:00:05]} 2. c4 {[%emt 0:00:01]} e6 {[%emt 0:00:04]} 3. g3 {[%emt 0:00:03]} Nf6 {[%emt 0:00:01]} 4. Bg2 {[%emt 0:00:01]} Be7 {[%emt 0:00:01]} 5. O-O {[%emt 0:00:01]} O-O {[%emt 0:00:01]} 6. d4 {[%emt 0:00:02]} dxc4 {[%emt 0:00:12]} 7. Qc2 {[%emt 0:00:14]} b6 {[%emt 0:00:01]} 8. Ne5 {[%emt 0:00:02]} Qxd4 {[%emt 0:00:02]} 9. Bxa8 {[%emt 0:00:01]} Qxe5 {[%emt 0:00:01]} 10. Bg2 {[%emt 0:00:28]} Qh5 {[%emt 0:00:31]} 11. Qxc4 {[%emt 0:00:33]} c5 {[%emt 0:00:11]} 12. Nc3 {[%emt 0:00:05]} Nbd7 {[%emt 0:00:04]} 13. Bf4 {[%emt 0:00:17]} a6 {[%emt 0:00:06]} 14. a4 {[%emt 0:00:08]} Ne5 {[%emt 0:00:29]} 15. Qb3 {[%emt 0:00:29]} Nfd7 {[%emt 0:00:02]} 16. Rad1 {[%emt 0:00:09]} c4 {[%emt 0:00:06]} 17. Qc2 {[%emt 0:00:05]} Nc5 {[%emt 0:00:01]} 18. Ne4 {[%emt 0:00:19]} b5 {[%emt 0:00:01]} 19. axb5 {[%emt 0:00:09]} axb5 {[%emt 0:00:00]} 20. Nd6 {[%emt 0:00:18]} Ng6 {[%emt 0:00:31]} 21. Be3 {[%emt 0:00:49]} Ba6 {[%emt 0:00:30]} 22. Qc3 {[%emt 0:00:29]} Nb3 {[%emt 0:00:15]} 23. f4 {[%emt 0:00:56]} Rd8 {[%emt 0:01:00]} 24. Bf3 {[%emt 0:00:41]} Qh3 {[%emt 0:00:01]} 25. Ne4 {[%emt 0:00:07]} Rxd1 {[%emt 0:00:02]} 26. Rxd1 {[%emt 0:00:00]} b4 {[%emt 0:00:07]} 27. Qc2 {[%emt 0:00:16]} Qf5 {[%emt 0:00:01]} 28. Rd7 {[%emt 0:00:08]} Qb5 {[%emt 0:00:17]} 29. Qd1 {[%emt 0:00:08]} Bf8 {[%emt 0:00:06]} 30. Ng5 {[%emt 0:00:03]} c3 {[%emt 0:00:08]} 31. Rxf7 {[%emt 0:00:23]} Qc4 {[%emt 0:00:06]} 32. bxc3 {[%emt 0:00:09]} bxc3 {[%emt 0:00:02]} 33. Be4 {[%emt 0:00:23]} Nc5 {[%emt 0:00:05]} 34. Bc2 {[%emt 0:00:03]} h6 {[%emt 0:00:04]} 35. Nf3 {[%emt 0:00:06]} Kxf7 {[%emt 0:00:01]} 36. Bxg6+ {[%emt 0:00:01]} Kg8 {[%emt 0:00:05]} 37. Qc2 {[%emt 0:00:06]} Qxe2 {[%emt 0:00:02]} 38. Bh7+ {[%emt 0:00:05]} Kh8 {[%emt 0:00:01]} 39. Qxe2 {[%emt 0:00:02]} Bxe2 {[%emt 0:00:01]} 40. Nd4 {[%emt 0:00:03]} Kxh7 {[%emt 0:00:36]} 41. Nxe2 {[%emt 0:00:01]} Ne4 {[%emt 0:00:00]} 42. Kg2 {[%emt 0:00:05]} Bb4 {[%emt 0:00:05]} 43. Nd4 {[%emt 0:00:02]} Ba3 {[%emt 0:00:03]} 44. Nc2 {[%emt 0:00:01]} Bb2 {[%emt 0:00:01]} 45. Kf3 {[%emt 0:00:02]} Nd6 {[%emt 0:00:01]} 46. Ke2 {[%emt 0:00:04]} Kg6 {[%emt 0:00:04]} 47. Kd3 {[%emt 0:00:01]} Kf5 {[%emt 0:00:01]} 48. Bd4 {[%emt 0:00:03]} g5 {[%emt 0:00:08]} 49. fxg5 {[%emt 0:00:03]} hxg5 {[%emt 0:00:01]} 50. Ne3+ {[%emt 0:00:08]} Kg6 {[%emt 0:00:05] Jncool68 propose la nulle} 51. Bxc3 {[%emt 0:00:01]} Bxc3 {[%emt 0:00:02]} 1/2-1/2

[Event "TOP 16 - Final A"]
[Site "TOP16-Final-A"]
[Date "2021.01.17"]
[Round "10"]
[White "Tigran1984"]
[Black "Pierre35"]
[Result "1/2-1/2"]
[WhiteElo "2731"]
[BlackElo "2117"]
[Annotator "NA RC"]
[PlyCount "128"]
[EventDate "2021.01.17"]
[EventType "blitz"]
[TimeControl "420+3"]

1. e4 {[%emt 0:00:03]} e5 {[%emt 0:00:03]} 2. Nf3 {[%emt 0:00:02]} Nc6 {[%emt 0:00:03]} 3. Nc3 {[%emt 0:00:00]} Nf6 {[%emt 0:00:02]} 4. d4 {[%emt 0:00:00]} exd4 {[%emt 0:00:02]} 5. Nxd4 {[%emt 0:00:00]} Bb4 {[%emt 0:00:02]} 6. Nxc6 {[%emt 0:00:01]} bxc6 {[%emt 0:00:01]} 7. Bd3 {[%emt 0:00:01]} d5 {[%emt 0:00:03]} 8. Bd2 {[%emt 0:00:05]} O-O {[%emt 0:00:31]} 9. O-O {[%emt 0:00:02]} Bxc3 {[%emt 0:00:33]} 10. Bxc3 {[%emt 0:00:03]} dxe4 {[%emt 0:00:15]} 11. Bxf6 {[%emt 0:00:04]} Qxf6 {[%emt 0:00:01]} 12. Bxe4 {[%emt 0:00:03]} Qxb2 {[%emt 0:00:50]} 13. Bxc6 {[%emt 0:00:11]} Rb8 {[%emt 0:00:36]} 14. Bd5 {[%emt 0:00:07]} Qf6 {[%emt 0:00:12]} 15. Bb3 {[%emt 0:00:27]} Be6 {[%emt 0:00:06]} 16. Re1 {[%emt 0:00:05]} Rfd8 {[%emt 0:00:25]} 17. Qe2 {[%emt 0:00:08]} Rb6 {[%emt 0:00:42]} 18. Rad1 {[%emt 0:00:41]} Rbd6 {[%emt 0:00:25]} 19. Rxd6 {[%emt 0:00:06]} Rxd6 {[%emt 0:00:02]} 20. Qe3 {[%emt 0:00:20]} Qd4 {[%emt 0:00:17]} 21. Qxd4 {[%emt 0:00:22]} Rxd4 {[%emt 0:00:00]} 22. f3 {[%emt 0:00:01]} Rd6 {[%emt 0:00:47]} 23. Re5 {[%emt 0:00:16]} Kf8 {[%emt 0:00:05]} 24. Rc5 {[%emt 0:00:03]} c6 {[%emt 0:00:09]} 25. Ra5 {[%emt 0:00:05]} Rd7 {[%emt 0:00:10]} 26. Ra6 {[%emt 0:00:20]} Rc7 {[%emt 0:00:09]} 27. Kf2 {[%emt 0:00:01]} Ke7 {[%emt 0:00:02]} 28. Ke3 {[%emt 0:00:02]} Kd6 {[%emt 0:00:12]} 29. Ra4 {[%emt 0:01:03]} Bd5 {[%emt 0:00:10]} 30. Ra5 {[%emt 0:00:15]} h6 {[%emt 0:00:52]} 31. h4 {[%emt 0:00:11]} Be6 {[%emt 0:00:16]} 32. h5 {[%emt 0:00:18]} Re7 {[%emt 0:00:06]} 33. Kf4 {[%emt 0:00:12]} g5+ {[%emt 0:00:15]} 34. hxg6 {[%emt 0:00:04]} fxg6 {[%emt 0:00:00]} 35. Bxe6 {[%emt 0:01:32]} Rxe6 {[%emt 0:00:00]} 36. Rxa7 {[%emt 0:00:01]} Re2 {[%emt 0:00:01]} 37. g3 {[%emt 0:00:11]} Rxc2 {[%emt 0:00:02]} 38. Rg7 {[%emt 0:00:01]} Rc4+ {[%emt 0:00:11]} 39. Ke3 {[%emt 0:00:02]} g5 {[%emt 0:00:12]} 40. Rg6+ {[%emt 0:00:06]} Kd5 {[%emt 0:00:01]} 41. Rxh6 {[%emt 0:00:00]} Rc3+ {[%emt 0:00:01]} 42. Ke2 {[%emt 0:00:03]} Rc2+ {[%emt 0:00:02]} 43. Kd3 {[%emt 0:00:01]} Rxa2 {[%emt 0:00:02]} 44. Rg6 {[%emt 0:00:06]} Ra3+ {[%emt 0:00:01]} 45. Ke2 {[%emt 0:00:01]} Ra2+ {[%emt 0:00:03]} 46. Ke3 {[%emt 0:00:00]} Ra3+ {[%emt 0:00:02]} 47. Kf2 {[%emt 0:00:01]} Ra2+ {[%emt 0:00:01]} 48. Ke3 {[%emt 0:00:11]} Ra3+ {[%emt 0:00:01]} 49. Ke2 {[%emt 0:00:00]} Ra2+ {[%emt 0:00:01]} 50. Kd1 {[%emt 0:00:14]} c5 {[%emt 0:00:14]} 51. Rxg5+ {[%emt 0:00:02]} Kd4 {[%emt 0:00:01]} 52. Rg7 {[%emt 0:00:18]} Rg2 {[%emt 0:00:07]} 53. f4 {[%emt 0:00:23]} c4 {[%emt 0:00:02]} 54. f5 {[%emt 0:00:05]} c3 {[%emt 0:00:07]} 55. g4 {[%emt 0:00:25]} Kd3 {[%emt 0:00:02]} 56. Rd7+ {[%emt 0:00:01]} Ke4 {[%emt 0:00:01]} 57. Rg7 {[%emt 0:00:08]} Kd3 {[%emt 0:00:01]} 58. Rd7+ {[%emt 0:00:01]} Ke4 {[%emt 0:00:01]} 59. f6 {[%emt 0:00:11]} Rxg4 {[%emt 0:00:03]} 60. Kc2 {[%emt 0:00:06]} Rf4 {[%emt 0:00:03]} 61. f7 {[%emt 0:00:02]} Ke5 {[%emt 0:00:01]} 62. Kxc3 {[%emt 0:00:04]} Ke6 {[%emt 0:00:01]} 63. Ra7 {[%emt 0:00:02]} Rxf7 {[%emt 0:00:01]} 64. Rxf7 {[%emt 0:00:01]} Kxf7 {[%emt 0:00:00] No Material (Lag: Av=0.38s, max=0.9s)} 1/2-1/2

[Event "TOP 16 - Final A"]
[Site "TOP16-Final-A"]
[Date "2021.01.17"]
[Round "10"]
[White "Burrito2001"]
[Black "SebyFischer57"]
[Result "1/2-1/2"]
[WhiteElo "2168"]
[BlackElo "2021"]
[Annotator "NA RC"]
[PlyCount "114"]
[EventDate "2021.01.17"]
[EventType "blitz"]
[TimeControl "420+3"]

1. d4 {[%emt 0:00:04]} d5 {[%emt 0:00:10]} 2. c4 {[%emt 0:00:02]} e6 {[%emt 0:00:01]} 3. Nc3 {[%emt 0:00:03]} a6 {[%emt 0:00:14]} 4. cxd5 {[%emt 0:00:15]} exd5 {[%emt 0:00:00]} 5. Bf4 {[%emt 0:00:01]} Nf6 {[%emt 0:00:05]} 6. e3 {[%emt 0:00:03]} h6 {[%emt 0:00:08]} 7. Bd3 {[%emt 0:00:03]} Bd6 {[%emt 0:00:04]} 8. Nge2 {[%emt 0:00:08]} O-O {[%emt 0:00:05]} 9. Rc1 {[%emt 0:00:14]} Nc6 {[%emt 0:00:28]} 10. O-O {[%emt 0:00:11]} Ne7 {[%emt 0:00:03]} 11. Qc2 {[%emt 0:00:07]} c6 {[%emt 0:01:15]} 12. Rcd1 {[%emt 0:00:48]} Bxf4 {[%emt 0:01:13]} 13. Nxf4 {[%emt 0:00:03]} Qd6 {[%emt 0:00:02]} 14. Na4 {[%emt 0:01:02]} Nd7 {[%emt 0:00:59]} 15. Rc1 {[%emt 0:00:40]} b6 {[%emt 0:00:04]} 16. Rfd1 {[%emt 0:00:51]} Bb7 {[%emt 0:00:02]} 17. Qb3 {[%emt 0:00:02]} Rab8 {[%emt 0:01:02]} 18. Be2 {[%emt 0:00:36]} a5 {[%emt 0:00:17]} 19. Bg4 {[%emt 0:00:54]} Ba6 {[%emt 0:00:16]} 20. Be2 {[%emt 0:00:34]} Bxe2 {[%emt 0:00:10]} 21. Nxe2 {[%emt 0:00:00]} f5 {[%emt 0:00:36]} 22. Qc2 {[%emt 0:00:14]} Kh8 {[%emt 0:00:05]} 23. Nac3 {[%emt 0:00:28]} Nf6 {[%emt 0:00:02]} 24. Nf4 {[%emt 0:00:02]} Rbc8 {[%emt 0:00:43]} 25. Nd3 {[%emt 0:00:09]} c5 {[%emt 0:00:01]} 26. Ne5 {[%emt 0:00:05]} cxd4 {[%emt 0:00:02]} 27. exd4 {[%emt 0:00:01]} Ne4 {[%emt 0:00:07]} 28. Qe2 {[%emt 0:00:25]} Nc6 {[%emt 0:00:03]} 29. Nb5 {[%emt 0:00:06]} Qe6 {[%emt 0:00:02]} 30. Nd3 {[%emt 0:00:09]} Rfe8 {[%emt 0:00:04]} 31. Qf3 {[%emt 0:00:02]} g6 {[%emt 0:00:02]} 32. Nf4 {[%emt 0:00:02]} Qf7 {[%emt 0:00:02]} 33. Qh3 {[%emt 0:00:06]} Kh7 {[%emt 0:00:02]} 34. Nd3 {[%emt 0:00:02]} Qf6 {[%emt 0:00:03]} 35. Qf3 {[%emt 0:00:03]} Nb4 {[%emt 0:00:07]} 36. Nxb4 {[%emt 0:00:02]} axb4 {[%emt 0:00:00]} 37. Qd3 {[%emt 0:00:01]} Rc6 {[%emt 0:00:03]} 38. f3 {[%emt 0:00:04]} Ng5 {[%emt 0:00:01]} 39. Qd2 {[%emt 0:00:03]} Rec8 {[%emt 0:00:09]} 40. Na7 {[%emt 0:00:02]} Rxc1 {[%emt 0:00:02]} 41. Rxc1 {[%emt 0:00:02]} Rxc1+ {[%emt 0:00:00]} 42. Qxc1 {[%emt 0:00:00]} Qxd4+ {[%emt 0:00:01]} 43. Kh1 {[%emt 0:00:00]} Ne6 {[%emt 0:00:02]} 44. Qf1 {[%emt 0:00:05]} Qxb2 {[%emt 0:00:05]} 45. Qe1 {[%emt 0:00:01]} Qf6 {[%emt 0:00:02]} 46. Nc6 {[%emt 0:00:02]} Nc5 {[%emt 0:00:02]} 47. Nxb4 {[%emt 0:00:01]} Qd6 {[%emt 0:00:06]} 48. Qe8 {[%emt 0:00:03]} h5 {[%emt 0:00:02]} 49. Qf7+ {[%emt 0:00:02]} Kh6 {[%emt 0:00:02]} 50. Nxd5 {[%emt 0:00:22]} Ne6 {[%emt 0:00:02]} 51. Ne3 {[%emt 0:00:01]} Qe5 {[%emt 0:00:05]} 52. Nf1 {[%emt 0:00:01]} Qe1 {[%emt 0:00:06]} 53. Kg1 {[%emt 0:00:01]} Nf4 {[%emt 0:00:06]} 54. Qf8+ {[%emt 0:00:02]} Kh7 {[%emt 0:00:01]} 55. Qf7+ {[%emt 0:00:03]} Kh6 {[%emt 0:00:01]} 56. Qf8+ {[%emt 0:00:04]} Kh7 {[%emt 0:00:01]} 57. Qf7+ {[%emt 0:00:06]} Kh6 {[%emt 0:00:03] Threefold Rep (Lag: Av=0.52s, max=0.8s)} 1/2-1/2